bitfinex-derivatives/quotes_ETHF0:USTF0_20260113
["timestamp","ask_amount","ask_price","bid_price","bid_amount"]
[1768290988204,1.0940756,3125.4,3124.6,0.14085853]
[1768290988404,0.89914034,3125.3,3124.6,0.14085853]
[1768290988706,0.89914034,3125.2,3124.6,0.14085853]
[1768290988894,0.89914034,3125.1,3124.6,0.14085853]
[1768290989098,1.0940756,3125.4,3124.6,0.14085853]
[1768290989299,0.89878021,3125.3,3124.6,0.14085853]
[1768290989499,0.89878021,3125.2,3124.6,0.14085853]
[1768290989705,0.89878021,3125.1,3124.6,0.14085853]
[1768290989907,1.0940756,3125.5,3124.6,0.14085853]
[1768290990206,1.31458146,3125.4,3124.6,0.14085853]
[1768290990409,0.89877696,3125.3,3124.6,0.14085853]
[1768290990705,0.89877696,3125.2,3124.6,0.14085853]
[1768290990906,0.89877696,3125.1,3124.6,0.14085853]
[1768290991108,1.0940756,3125.3,3124.6,0.14085853]
[1768290991302,0.89879683,3125.2,3124.6,0.14085853]
[1768290991496,0.89879683,3125.1,3124.6,0.14085853]
[1768290991699,1.0940756,3125.3,3124.6,0.14085853]
[1768290991903,0.8987969,3125.2,3124.6,0.14085853]
[1768290992204,0.8987969,3125.1,3124.8,0.13606298]
[1768290992405,1.0940756,3125.6,3124.8,0.13606298]
[1768290992704,0.41582374,3125.5,3124.8,0.13606298]
[1768290992903,0.41582374,3125.4,3124.8,0.13606298]
[1768290993107,1.0940756,3125.6,3124.8,0.13606298]
[1768290993307,1.0940756,3125.4,3124.8,0.13606298]
[1768290994199,2.28939824,3125.9,3124.8,0.13606298]
[1768290994401,1.0940756,3125.4,3124.8,0.13606298]
[1768290996814,1.0940756,3125.5,3124.8,0.13606298]
[1768290997109,0.41582465,3125.4,3124.8,0.13606298]
[1768290997305,1.0940756,3125.5,3124.8,0.13606298]
[1768290997508,0.41581687,3125.4,3124.8,0.13606298]
[1768290997698,1.0940756,3125.5,3124.8,0.13606298]
[1768290997903,0.41581687,3125.4,3124.8,0.13606298]
[1768290998104,1.0940756,3125.5,3124.8,0.13606298]
[1768290998395,0.41581687,3125.4,3124.8,0.13606298]
[1768290998600,1.0940756,3125.5,3124.8,0.13606298]
[1768290998801,0.4158106,3125.4,3124.8,0.13606298]
[1768290998997,1.0940756,3125.5,3124.8,0.13606298]
[1768290999208,0.4158106,3125.4,3124.8,0.13606298]
[1768290999409,1.0940756,3125.5,3124.8,0.13606298]
[1768290999611,0.41580549,3125.4,3124.8,0.13606298]
[1768290999814,1.0940756,3125.5,3124.8,0.13606298]
[1768291000002,0.41580522,3125.4,3124.8,0.13606298]
[1768291000299,1.0940756,3125.5,3124.8,0.13606298]
[1768291000609,0.41580177,3125.4,3124.8,0.13606298]
[1768291000909,1.0940756,3125.5,3124.8,0.13606298]
[1768291001111,0.41580286,3125.4,3124.8,0.13606298]
[1768291001410,1.0940756,3125.5,3124.8,0.13606298]
[1768291001604,0.41579927,3125.4,3124.8,0.13606298]
[1768291001806,1.0940756,3125.5,3124.8,0.13606298]
[1768291002011,0.41579924,3125.4,3124.8,0.13606298]
[1768291002212,1.0940756,3125.5,3124.8,0.13606298]
[1768291002416,0.41579614,3125.4,3124.8,0.13606298]
[1768291002614,1.0940756,3125.5,3124.8,0.13606298]
[1768291002914,0.41579658,3125.4,3124.8,0.13606298]
[1768291003116,1.0940756,3125.5,3124.8,0.13606298]
[1768291003414,0.41579657,3125.4,3124.8,0.13606298]
[1768291003714,1.0940756,3125.5,3124.8,0.13606298]
[1768291004015,0.4157939,3125.4,3124.8,0.13606298]
[1768291004320,0.894871,3125.3,3124.8,0.13606298]
[1768291004516,0.894871,3125.2,3124.8,0.13606298]
[1768291004715,1.0940756,3125.5,3124.8,0.13606298]
[1768291005015,1.31066405,3125.4,3124.8,0.13606298]
[1768291005203,0.894871,3125.3,3124.8,0.13606298]
[1768291005405,0.894871,3125.2,3124.8,0.13606298]
[1768291005611,1.0940756,3125.5,3124.8,0.13606298]
[1768291005808,0.89487009,3125.4,3124.8,0.13606298]
[1768291006010,0.89487009,3125.3,3124.8,0.13606298]
[1768291006209,0.89487009,3125.2,3124.8,0.13606298]
[1768291006411,1.0940756,3125.5,3124.8,0.13606298]
[1768291006615,1.31066256,3125.4,3124.8,0.13606298]
[1768291006917,0.89486967,3125.3,3124.8,0.13606298]
[1768291007108,1.0940756,3125.5,3124.6,1.09887115]
[1768291007109,0.89486967,3125.2,3124.6,1.09887115]
[1768291007306,1.0940756,3125.5,3124.6,1.09887115]
[1768291007506,1.31066411,3125.4,3124.6,1.09887115]
[1768291007705,0.89487095,3125.3,3124.6,1.09887115]
[1768291007903,0.89487095,3125.2,3124.6,1.09887115]
[1768291008106,1.0940756,3125.5,3124.6,1.09887115]
[1768291008308,1.31066495,3125.4,3124.6,1.09887115]
[1768291008618,0.89487178,3125.3,3124.6,0.00479555]
[1768291008820,0.89487178,3125.2,3124.6,1.09887115]
[1768291009118,1.0940756,3125.3,3124.6,1.09887115]
[1768291009308,0.89487027,3125.2,3124.6,1.09887115]
[1768291009603,1.0940756,3125.3,3124.6,1.09887115]
[1768291009808,0.89487701,3125.2,3124.6,1.09887115]
[1768291010008,1.0940756,3125.3,3124.6,1.09887115]
[1768291010207,0.89487647,3125.2,3124.6,1.09887115]
[1768291010407,1.0940756,3125.3,3124.6,1.09887115]
[1768291010702,0.89488159,3125.2,3124.6,1.09887115]
[1768291010908,1.0940756,3125.3,3124.6,1.09887115]
[1768291011112,0.89488211,3125.2,3124.6,1.09887115]
[1768291011313,1.0940756,3125.3,3124.6,1.09887115]
[1768291011612,0.89490346,3125.2,3124.6,1.09887115]
[1768291011812,1.0940756,3125.3,3124.6,1.09887115]
[1768291012013,0.89490846,3125.2,3124.6,1.09887115]
[1768291012212,1.0940756,3125.3,3124.6,1.09887115]
[1768291012414,0.89491597,3125.2,3124.6,1.09887115]
[1768291012613,1.0940756,3125.3,3124.6,1.09887115]
[1768291012815,0.89491716,3125.2,3124.6,1.09887115]
[1768291013113,1.0940756,3125.3,3124.6,1.09887115]
[1768291013310,1.0940756,3125.4,3124.6,1.23954363]
[1768291015114,0.89494693,3125.3,3124.6,1.23954363]
[1768291015308,0.89494693,3125.2,3124.6,1.23954363]
[1768291015508,1.0940756,3125.4,3124.6,1.23954363]
[1768291015716,0.89495522,3125.3,3124.6,1.23954363]
[1768291016013,0.89495522,3125.2,3124.6,1.23954363]
[1768291016215,1.0940756,3125.4,3124.6,1.23954363]
[1768291016414,0.89496686,3125.3,3124.6,1.23954363]
[1768291016616,0.89496686,3125.2,3124.6,1.23954363]
[1768291016813,1.0940756,3125.4,3124.6,1.23954363]
[1768291017007,0.89496682,3125.3,3124.6,1.23954363]
[1768291017216,0.89496682,3125.2,3124.6,1.23954363]
[1768291017420,1.09397579,3125.7,3124.6,0.14546803]
[1768291017614,1.31082596,3125.6,3124.6,0.14546803]
[1768291017817,1.31082596,3125.5,3124.6,0.14546803]
[1768291018020,1.31082596,3125.4,3124.6,0.14546803]
[1768291018222,0.89498077,3125.3,3124.6,0.14546803]
[1768291018520,0.89498077,3125.2,3124.6,0.14546803]
[1768291018716,1.09397579,3125.7,3124.6,0.14546803]
[1768291018918,1.31084432,3125.6,3124.6,0.14546803]
[1768291019118,1.31084432,3125.5,3124.6,0.14546803]
[1768291019312,1.31084432,3125.4,3124.6,0.14546803]
[1768291019513,0.89499305,3125.3,3124.6,0.14546803]
[1768291019723,0.89499305,3125.2,3124.6,0.14546803]
[1768291020023,1.09397579,3125.5,3124.6,0.00479555]
[1768291020211,1.31070998,3125.4,3124.6,0.00479555]
[1768291020412,0.89484814,3125.3,3124.6,0.00479555]
[1768291020612,0.89484814,3125.2,3124.6,0.00479555]
[1768291020814,1.09397579,3125.5,3124.6,0.00479555]
[1768291021014,1.31070936,3125.4,3124.6,0.00479555]
[1768291021212,0.89484528,3125.3,3124.6,0.00479555]
[1768291021417,0.89484528,3125.2,3124.6,0.00479555]
[1768291021720,1.09397579,3125.5,3124.6,0.00479555]
[1768291021920,1.31041646,3125.4,3124.6,0.00479555]
[1768291022115,0.89464533,3125.3,3124.6,0.00479555]
[1768291022316,0.89464533,3125.2,3124.6,0.00479555]
[1768291022518,1.09397579,3125.5,3124.6,0.00479555]
[1768291022720,1.31043337,3125.4,3124.6,0.00479555]
[1768291022919,0.89465797,3125.3,3124.6,0.00479555]
[1768291023217,0.89465797,3125.2,3124.6,0.00479555]
[1768291023418,1.09397579,3125.5,3124.6,0.00479555]
[1768291023612,1.09397579,3125.2,3124.6,0.00479555]
[1768291023819,0.89467181,3125.1,3124.2,0.14067248]
[1768291024020,0.89467181,3125.0,3124.2,0.14067248]
[1768291024218,1.09397579,3125.2,3124.2,0.14067248]
[1768291024431,0.89446136,3125.1,3124.2,0.14067248]
[1768291024621,0.89446136,3125.0,3124.2,0.14067248]
[1768291024824,1.09397579,3125.2,3124.2,0.14067248]
[1768291025027,0.89446135,3125.1,3124.2,0.14067248]
[1768291025322,0.00479555,3124.9,3124.2,0.14067248]
[1768291049432,1.09397579,3125.7,3124.4,0.14445923]
[1768291049632,1.31050774,3125.6,3124.4,0.14445923]
[1768291049835,1.09397579,3125.4,3124.5,1.421]
[1768291050030,0.89482703,3125.3,3124.5,1.421]
[1768291050333,0.89482703,3125.3,3124.4,0.14445923]
[1768291050532,1.09397579,3125.1,3124.4,0.14445923]
[1768291050728,1.09397579,3125.4,3124.4,0.14445923]
[1768291050936,0.89483262,3125.3,3124.4,0.14445923]
[1768291051136,0.89483262,3125.2,3124.4,0.14445923]
[1768291051335,0.89483262,3125.1,3124.4,0.14445923]
[1768291051536,1.09397579,3125.4,3124.4,0.14445923]
[1768291051736,0.89489604,3125.3,3124.4,0.14445923]
[1768291051937,0.89489604,3125.2,3124.4,0.14445923]
[1768291052138,0.89489604,3125.1,3124.4,0.14445923]
[1768291052445,1.09397579,3125.4,3124.4,0.14445923]
[1768291052632,0.89496841,3125.3,3124.4,0.14445923]
[1768291052835,0.89496841,3125.2,3124.4,0.14445923]
[1768291053037,0.89496841,3125.1,3124.4,0.14445923]
[1768291053341,1.09397579,3125.3,3124.4,0.14445923]
[1768291053542,0.89506128,3125.2,3124.4,0.14445923]
[1768291053738,1.09397579,3125.3,3124.4,0.14445923]
[1768291053739,0.89506128,3125.1,3124.4,0.14445923]
[1768291053943,1.09397579,3125.3,3124.2,1.42579555]
[1768291054141,0.89506232,3125.2,3124.2,1.42579555]
[1768291054342,0.89506232,3125.1,3124.2,1.42579555]
[1768291054542,1.09397579,3125.3,3124.2,1.42579555]
[1768291054740,0.89505254,3125.2,3124.2,1.42579555]
[1768291055044,0.89505254,3125.1,3124.2,1.42479555]
[1768291055243,1.09397579,3125.3,3124.2,1.42479555]
[1768291055442,0.89504316,3125.2,3124.2,1.42479555]
[1768291055744,0.89504316,3125.1,3124.2,1.42479555]
[1768291055945,1.09397579,3125.3,3124.2,1.42479555]
[1768291056146,0.89504313,3125.2,3124.2,1.42479555]
[1768291056445,0.89504313,3125.1,3124.2,1.42479555]
[1768291056645,1.09397579,3125.3,3124.2,1.42479555]
[1768291056944,0.89503377,3125.2,3124.2,1.42479555]
[1768291057145,0.89503377,3125.1,3124.2,1.42479555]
[1768291057446,1.09397579,3125.3,3124.2,1.42479555]
[1768291057644,0.89502632,3125.2,3124.2,1.42479555]
[1768291057836,0.89502632,3125.1,3124.2,1.42479555]
[1768291058037,1.09397579,3125.3,3124.2,1.42479555]
[1768291058237,0.89502153,3125.2,3124.2,1.42479555]
[1768291058437,0.89502153,3125.1,3124.2,1.42479555]
[1768291058645,1.09397579,3125.3,3124.2,1.42479555]
[1768291058943,0.89502174,3125.2,3124.2,1.42479555]
[1768291059143,0.89502174,3125.1,3124.2,1.42479555]
[1768291059345,1.09397579,3125.3,3124.2,1.42479555]
[1768291059544,0.8950336,3125.2,3124.2,1.42479555]
[1768291059745,0.8950336,3125.1,3124.2,1.42479555]
[1768291059946,1.09397579,3125.3,3124.2,1.42479555]
[1768291060248,0.89513097,3125.2,3124.2,1.55872957]
[1768291060447,0.89513097,3125.1,3124.2,1.55872957]
[1768291060648,1.09397579,3125.3,3124.2,1.55872957]
[1768291060847,0.89512481,3125.2,3124.2,1.55872957]
[1768291061047,0.89512481,3125.1,3124.2,1.55872957]
[1768291061248,1.09397579,3125.3,3124.2,1.55872957]
[1768291061451,0.8951115,3125.2,3124.2,1.55872957]
[1768291061742,0.8951115,3125.1,3124.2,1.55872957]
[1768291061953,1.09397579,3125.3,3124.2,1.55872957]
[1768291062248,0.89511742,3125.2,3124.2,1.55872957]
[1768291062549,0.89511742,3125.1,3124.2,1.55872957]
[1768291062750,1.09397579,3125.3,3124.2,1.55872957]
[1768291062951,0.89511024,3125.2,3124.2,1.55872957]
[1768291063153,0.89511024,3125.1,3124.2,1.55872957]
[1768291063353,2.43023849,3125.9,3124.2,0.13872957]
[1768291063652,1.09397579,3125.4,3124.2,1.55972957]
[1768291063853,0.89512593,3125.3,3124.2,1.55972957]
[1768291064052,0.89512593,3125.2,3124.2,1.55972957]
[1768291064253,0.89512593,3125.1,3124.2,1.55972957]
[1768291064454,1.09397579,3125.4,3124.2,1.55972957]
[1768291064650,0.89508954,3125.3,3124.2,1.55972957]
[1768291064850,1.09397579,3125.1,3124.2,0.00479555]
[1768291065057,0.89508954,3125.0,3124.2,0.00479555]
[1768291065745,1.09397579,3125.2,3124.2,0.00479555]
[1768291065951,0.89509859,3125.1,3124.2,0.00479555]
[1768291066252,0.89509859,3125.0,3124.2,0.00479555]
[1768291066554,1.09397579,3125.4,3124.2,0.13872957]
[1768291066754,1.31090431,3125.3,3124.2,0.13872957]
[1768291067048,0.8951037,3125.2,3124.2,0.13872957]
[1768291067261,0.8951037,3125.1,3124.2,0.13872957]
[1768291067441,0.8951037,3125.0,3124.2,0.13872957]
[1768291067744,1.09397579,3125.4,3124.2,0.13872957]
[1768291067947,1.3110077,3125.3,3124.2,0.13872957]
[1768291068148,0.89517431,3125.2,3124.2,0.13872957]
[1768291068348,0.89517431,3125.1,3124.2,0.13872957]
[1768291068549,0.89517431,3125.0,3124.2,0.13872957]
[1768291068749,1.09397579,3125.4,3124.2,0.13872957]
[1768291069051,1.31102342,3125.3,3124.2,0.13872957]
[1768291069250,0.89518505,3125.2,3124.2,0.13872957]
[1768291069558,0.89518505,3125.1,3124.2,0.13872957]
[1768291069748,0.89518505,3125.0,3124.2,0.13872957]
[1768291069943,1.09397579,3125.4,3124.2,0.13872957]
[1768291070148,1.3110298,3125.3,3124.2,0.13872957]
[1768291070349,0.89518941,3125.2,3124.2,0.13872957]
[1768291070550,0.89518941,3125.1,3124.2,0.13872957]
[1768291070750,0.89518941,3125.0,3124.2,0.13872957]
[1768291070950,1.09397579,3125.4,3124.2,0.13872957]
[1768291071251,1.31103312,3125.3,3124.2,0.13872957]
[1768291071451,0.89519162,3125.2,3124.2,0.13872957]
[1768291071750,0.89519162,3125.1,3124.2,0.13872957]
[1768291071948,0.89519162,3125.0,3124.2,0.13872957]
[1768291072152,1.09397579,3125.4,3124.2,0.13872957]
[1768291072352,1.3110586,3125.3,3124.2,0.13872957]
[1768291072553,0.89520884,3125.2,3124.2,0.13872957]
[1768291072753,0.89520884,3125.1,3124.2,0.13872957]
[1768291072961,0.89520884,3125.0,3124.2,0.13872957]
[1768291073164,1.09397579,3125.4,3124.2,0.13872957]
[1768291073358,1.31104161,3125.3,3124.2,0.13872957]
[1768291073562,0.89519723,3125.2,3124.2,0.13872957]
[1768291073863,0.89519723,3125.1,3124.2,0.13872957]
[1768291074057,0.89519723,3125.0,3124.2,0.13872957]
[1768291074258,1.09397579,3125.4,3124.2,0.13872957]
[1768291074466,1.31105999,3125.3,3124.2,0.13872957]
[1768291074659,0.89521006,3125.2,3124.2,0.13872957]
[1768291074962,0.89521006,3125.1,3124.2,0.13872957]
[1768291075262,0.89522032,3125.0,3124.2,0.13872957]
[1768291075463,1.09397579,3125.4,3124.2,0.13872957]
[1768291075658,1.31107544,3125.3,3124.2,0.13872957]
[1768291075858,0.89522032,3125.2,3124.2,0.13872957]
[1768291076056,0.89522032,3125.1,3124.2,0.13872957]
[1768291076256,0.89522032,3125.0,3124.2,0.13872957]
[1768291076456,1.09397579,3125.2,3124.2,0.13872957]
[1768291076663,0.89523178,3125.1,3124.2,0.13872957]
[1768291076858,0.89523178,3125.0,3124.2,0.13872957]
[1768291077070,1.09397579,3125.2,3124.2,0.13872957]
[1768291077361,0.8952448,3125.1,3124.2,0.13872957]
[1768291077563,0.8952448,3125.0,3124.2,0.13872957]
[1768291077764,1.09397579,3125.2,3124.2,0.13872957]
[1768291078061,0.8952456,3125.1,3124.2,0.13872957]
[1768291078265,0.8952456,3125.0,3124.2,0.13872957]
[1768291078562,1.09397579,3125.2,3124.2,0.13872957]
[1768291078752,0.89525776,3125.1,3124.2,0.13872957]
[1768291078956,0.89525776,3125.0,3124.2,0.13872957]
[1768291079161,1.09397579,3125.2,3124.2,0.13872957]
[1768291079361,1.09426508,3125.0,3124.2,0.13872957]
[1768291080557,1.09426508,3124.4,3123.7,0.13393402]
[1768291081864,1.09426508,3124.5,3123.7,0.13393402]
[1768291088470,1.09426508,3124.5,3123.7,1.55593402]
[1768291093367,1.09426508,3124.3,3123.6,0.16026]
[1768291093572,1.09426508,3124.3,3123.7,1.423]
[1768291094673,1.09426508,3124.8,3123.7,1.423]
[1768291094974,1.09426508,3124.5,3123.7,1.423]
[1768291096777,1.09426508,3124.8,3123.7,1.423]
[1768291096970,1.09426508,3124.5,3123.7,1.423]
[1768291099379,1.09426508,3124.5,3123.6,0.16026]
[1768291099678,1.09426508,3124.3,3123.6,0.16026]
[1768291099879,1.09426508,3124.3,3123.7,1.423]
[1768291107487,1.09426508,3124.3,3123.6,0.16026]
[1768291107682,1.09426508,3124.3,3123.7,1.425]
[1768291112485,1.09426508,3124.3,3123.7,1.427]
[1768291114899,1.09426508,3124.3,3123.6,0.16026]
[1768291115092,1.09426508,3124.3,3123.7,1.428]
[1768291116301,1.09426508,3124.3,3123.6,0.16026]
[1768291116600,1.09426508,3124.3,3123.7,1.428]
[1768291119192,1.09426508,3124.3,3123.6,0.16026]
[1768291119394,1.09426508,3124.3,3123.6,1.58926]
[1768291120603,1.09426508,3124.1,3123.6,1.59026]
[1768291124600,1.09426508,3124.1,3123.6,1.59126]
[1768291125106,1.09426508,3124.1,3123.6,0.16026]
[1768291125300,1.09426508,3124.1,3123.6,1.59126]
[1768291125708,1.09426508,3124.1,3123.6,0.16026]
[1768291126099,1.09426508,3124.1,3123.6,1.59126]
[1768291126808,1.09426508,3124.1,3123.6,0.16026]
[1768291127105,1.09426508,3124.1,3123.6,1.59126]
[1768291128307,1.09426508,3124.3,3123.6,1.59126]
[1768291129310,1.09426508,3124.3,3123.6,0.16026]
[1768291129502,1.09426508,3124.3,3123.6,1.59226]
[1768291130309,1.09426508,3124.2,3123.6,1.59226]
[1768291130608,1.09426508,3124.2,3123.6,0.16026]
[1768291130909,1.09426508,3124.2,3123.5,1.05224015]
[1768291132312,1.09426508,3124.0,3123.5,2.48524015]
[1768291132509,1.09841263,3124.0,3123.5,2.48524015]
[1768291133011,1.09841263,3124.0,3123.5,1.05224015]
[1768291139414,0.00414755,3124.0,3123.5,1.05224015]
[1768291141511,0.00414755,3124.0,3123.5,1.18534846]
[1768291142417,0.00414755,3124.0,3123.6,0.13310831]
[1768291142816,0.00479555,3124.9,3123.6,1.22802047]
[1768291143017,1.30949595,3124.8,3123.7,0.13310831]
[1768291143316,0.89412696,3124.7,3123.7,0.13310831]
[1768291143618,0.89412696,3124.6,3123.7,0.13310831]
[1768291143818,0.00315204,3124.6,3123.7,0.13310831]
[1768291145318,1.09491216,3124.4,3123.7,0.13310831]
[1768291146017,1.09491216,3124.4,3123.6,1.436]
[1768291146224,1.09491216,3124.4,3123.5,1.05224015]
[1768291148420,0.00315204,3124.6,3123.5,1.05224015]
[1768291148726,1.09491216,3124.4,3123.5,1.05224015]
[1768291149527,1.09491216,3124.2,3123.5,1.05224015]
[1768291154125,1.09491216,3123.8,3122.9,0.1406502]
[1768291154332,1.09491216,3123.6,3122.9,0.1406502]
[1768291155122,1.09491216,3123.6,3122.9,0.14359857]
[1768291155832,1.09491216,3123.8,3122.9,0.14359857]
[1768291157229,1.09491216,3124.2,3122.9,0.14359857]
[1768291157425,0.89292157,3124.1,3122.9,0.14359857]
[1768291157626,1.09491216,3123.9,3122.9,0.14359857]
[1768291168230,1.09491216,3124.2,3122.9,0.14359857]
[1768291168436,1.09491216,3123.9,3122.9,0.14359857]
[1768291168834,1.09491216,3123.9,3123.2,0.00479555]
[1768291169341,1.09788471,3123.9,3123.2,0.00479555]
[1768291175046,0.00297255,3123.9,3123.2,0.00479555]
[1768291178343,1.09491216,3123.8,3123.2,0.00479555]
[1768291180055,1.09491216,3123.8,3122.9,0.14359857]
[1768291189159,0.00297255,3123.9,3122.9,0.14359857]
[1768291189359,1.97409325,3123.8,3122.9,0.14359857]
[1768291189558,1.09491216,3123.8,3122.9,0.14359857]
[1768291191262,0.8792334,3123.7,3122.9,0.14359857]
[1768291191562,1.09491216,3123.7,3122.9,0.14359857]
[1768291194276,0.00297255,3123.9,3122.9,0.14359857]
[1768291194476,1.09491216,3123.7,3122.9,0.14359857]
[1768291196276,0.00297255,3123.9,3122.9,0.14359857]
[1768291196477,0.87912407,3123.8,3122.9,0.14359857]
[1768291196677,1.09788471,3123.9,3122.9,0.14359857]
[1768291196972,0.87912552,3123.8,3122.9,0.14359857]
[1768291197178,1.09788471,3123.9,3122.9,0.14359857]
[1768291197477,0.87912641,3123.8,3122.9,0.14359857]
[1768291197678,1.09788471,3123.9,3122.9,0.14359857]
[1768291197975,0.87913108,3123.8,3122.9,0.14359857]
[1768291198176,1.09788471,3123.9,3122.9,0.14359857]
[1768291198378,0.87913144,3123.8,3122.9,0.14359857]
[1768291198579,1.09491216,3123.6,3122.9,0.14359857]
[1768291199163,0.00297255,3123.9,3123.0,0.13659359]
[1768291199674,0.88078231,3123.8,3123.0,0.13659359]
[1768291199876,0.00297255,3123.9,3123.0,0.13659359]
[1768291200874,0.88076842,3123.8,3123.0,0.13659359]
[1768291201072,0.00297255,3123.9,3123.0,0.13659359]
[1768291201279,0.88076919,3123.8,3123.0,0.13659359]
[1768291201475,0.00297255,3123.9,3123.0,0.13659359]
[1768291202468,0.88078131,3123.8,3123.0,0.13659359]
[1768291202769,0.00297255,3123.9,3123.0,0.13659359]
[1768291202967,0.88078743,3123.8,3123.0,0.13659359]
[1768291203172,0.00297255,3123.9,3123.0,0.13659359]
[1768291203371,0.88079202,3123.8,3123.0,0.13659359]
[1768291203571,0.00297255,3123.9,3123.0,0.13659359]
[1768291203867,0.88079969,3123.8,3123.0,0.13659359]
[1768291204065,0.00297255,3123.9,3123.0,0.13659359]
[1768291204265,0.8808003,3123.8,3123.0,0.13659359]
[1768291204473,0.00297255,3123.9,3123.0,0.13659359]
[1768291204677,0.88081503,3123.8,3123.0,0.13659359]
[1768291204877,0.00297255,3123.9,3123.0,0.13659359]
[1768291205068,0.88081503,3123.8,3123.0,0.13659359]
[1768291205269,0.00297255,3123.9,3123.0,0.13659359]
[1768291205467,0.88083322,3123.8,3123.0,0.13659359]
[1768291205669,0.00297255,3123.9,3123.0,0.13659359]
[1768291205968,0.88083098,3123.8,3123.0,0.13659359]
[1768291206176,0.00297255,3123.9,3123.0,0.13659359]
[1768291206475,0.88081941,3123.8,3123.0,0.13659359]
[1768291206671,0.00297255,3123.9,3123.0,0.13659359]
[1768291206873,0.8807429,3123.8,3123.0,0.13659359]
[1768291207073,0.00297255,3123.9,3123.0,0.13659359]
[1768291207272,0.88074318,3123.8,3123.0,0.13659359]
[1768291207583,0.88073468,3123.7,3123.0,0.13659359]
[1768291207772,0.00297255,3123.9,3123.0,0.13659359]
[1768291207968,0.88074079,3123.8,3123.0,0.13659359]
[1768291208176,0.88074079,3123.7,3123.0,0.13659359]
[1768291208379,0.00297255,3123.9,3123.0,0.13659359]
[1768291208581,0.8807433,3123.8,3123.0,0.13659359]
[1768291208878,0.8807433,3123.7,3123.0,0.13659359]
[1768291209083,0.00297255,3123.9,3123.0,0.13659359]
[1768291209281,0.88074331,3123.8,3123.0,0.13659359]
[1768291209578,0.88074331,3123.7,3123.0,0.13659359]
[1768291209779,0.00297255,3123.9,3123.0,0.13659359]
[1768291209976,1.2963523,3123.8,3123.0,0.13659359]
[1768291210177,0.88076149,3123.7,3123.0,0.13659359]
[1768291210377,0.00297255,3123.9,3123.0,0.13659359]
[1768291210579,1.29646717,3123.8,3123.0,0.13659359]
[1768291210781,0.88086035,3123.7,3123.0,0.13659359]
[1768291210981,0.00297255,3123.9,3123.0,0.13659359]
[1768291211180,0.88086623,3123.8,3123.0,0.13659359]
[1768291211378,0.88086623,3123.7,3123.0,0.13659359]
[1768291211584,0.00297255,3123.9,3123.0,0.13659359]
[1768291211778,0.88089222,3123.8,3123.0,0.13659359]
[1768291211979,0.88089222,3123.7,3123.0,0.13659359]
[1768291212175,0.00297255,3123.9,3123.0,0.13659359]
[1768291212375,0.88089297,3123.8,3123.0,0.13659359]
[1768291212576,0.88089297,3123.7,3123.0,0.13659359]
[1768291212775,0.00297255,3123.9,3123.0,0.13659359]
[1768291212983,0.88089838,3123.8,3123.0,0.13659359]
[1768291213182,0.88089838,3123.7,3123.0,0.13659359]
[1768291213383,0.00297255,3123.9,3123.0,0.13659359]
[1768291213584,0.88088799,3123.8,3123.0,0.13659359]
[1768291213882,0.00297255,3123.9,3123.0,0.13659359]
[1768291214081,0.88090455,3123.8,3123.0,0.13659359]
[1768291214275,0.00297255,3123.9,3123.0,0.13659359]
[1768291214276,0.88090455,3123.7,3123.0,0.13659359]
[1768291214473,0.00297255,3123.9,3123.0,0.13659359]
[1768291214677,0.88093764,3123.8,3123.0,0.13659359]
[1768291214878,0.88093764,3123.7,3123.0,0.13659359]
[1768291215178,0.00297255,3123.9,3123.0,0.13659359]
[1768291215379,0.88094289,3123.8,3123.0,0.13659359]
[1768291215580,0.88094289,3123.7,3123.0,0.13659359]
[1768291215780,0.00297255,3123.9,3123.0,0.13659359]
[1768291216087,0.88095124,3123.8,3123.0,0.13659359]
[1768291216385,0.88095124,3123.7,3123.0,0.13659359]
[1768291216588,0.00297255,3123.9,3123.0,0.13659359]
[1768291216788,0.88096655,3123.8,3123.0,0.13659359]
[1768291217086,0.88096655,3123.7,3123.0,0.13659359]
[1768291217285,0.00297255,3123.9,3123.0,0.13659359]
[1768291217486,0.88097265,3123.8,3123.0,0.13659359]
[1768291217686,0.88097265,3123.7,3123.0,0.13659359]
[1768291217986,0.00297255,3123.9,3123.3,0.1403904]
[1768291219685,0.16021,3124.6,3123.5,0.1403904]
[1768291219886,1.29657907,3124.5,3123.5,0.1403904]
[1768291220080,3.55376636,3125.0,3123.5,0.1403904]
[1768291220081,0.88093709,3124.4,3123.6,0.1403904]
[1768291220277,0.88093709,3124.3,3123.6,0.1403904]
[1768291220487,0.00340584,3124.3,3123.6,0.1403904]
[1768291221390,0.00340584,3124.3,3123.8,0.1403904]
[1768291222887,1.09532553,3124.9,3123.8,0.1403904]
[1768291223087,3.55024189,3125.4,3123.9,0.1403904]
[1768291223088,0.88010153,3124.8,3123.9,0.1403904]
[1768291223392,0.16015,3125.4,3123.9,0.1403904]
[1768291223393,1.09532553,3125.2,3123.9,0.1403904]
[1768291223593,1.29494069,3125.1,3123.9,0.1403904]
[1768291223795,1.29494069,3125.0,3123.9,0.1403904]
[1768291223997,1.29494069,3124.9,3123.9,0.1403904]
[1768291224196,0.87977926,3124.8,3123.9,0.1403904]
[1768291224402,0.00386106,3125.1,3123.9,0.1403904]
[1768291224589,0.87947891,3125.0,3123.9,0.1403904]
[1768291224794,0.87947891,3124.9,3123.9,0.1403904]
[1768291224991,0.00386106,3125.1,3123.9,0.1403904]
[1768291225302,0.00386106,3125.1,3122.9,0.00294837]
[1768291225303,0.00386106,3125.1,3124.3,0.1403904]
[1768291230996,0.00386106,3125.1,3124.5,0.1403904]
[1768291231197,1.09532553,3125.8,3124.6,1.23571593]
[1768291231505,0.16011,3126.1,3124.7,0.1403904]
[1768291231696,0.87254385,3126.0,3124.9,0.1403904]
[1768291231899,1.25543553,3126.1,3124.9,0.1403904]
[1768291232098,0.87255079,3126.0,3124.9,0.1403904]
[1768291232299,0.00395728,3126.1,3124.9,0.1403904]
[1768291232805,0.00395728,3126.1,3125.3,0.1403904]
[1768291233006,0.00395728,3126.1,3125.3,0.14406943]
[1768291238212,0.00395728,3126.1,3125.1,1.09532553]
[1768291239206,0.00395728,3126.1,3125.1,1.09869055]
[1768291240116,0.00395728,3126.1,3125.1,1.24001155]
[1768291240613,0.00395728,3126.1,3125.2,0.141321]
[1768291241613,0.00395728,3126.1,3125.1,0.00336502]
[1768291243217,0.00395728,3126.1,3125.1,0.14468602]
[1768291244919,0.00395728,3126.1,3125.3,0.141321]
[1768291246008,0.00395728,3126.1,3125.4,1.23664653]
[1768291246309,0.00213428,3126.1,3125.5,0.141321]
[1768291246509,1.284,3126.7,3125.5,0.141321]
[1768291247218,0.87132719,3126.6,3125.5,0.141321]
[1768291247424,0.00252037,3126.6,3125.5,0.141321]
[1768291249421,0.8720977,3126.5,3125.5,0.141321]
[1768291249617,0.00252037,3126.6,3125.5,0.141321]
[1768291249817,0.8720977,3126.5,3125.5,0.141321]
[1768291250018,0.00252037,3126.6,3125.5,0.141321]
[1768291250315,0.8720998,3126.5,3125.5,0.141321]
[1768291250516,0.00252037,3126.6,3125.5,0.141321]
[1768291250719,0.00252037,3126.6,3126.0,1.09532553]
[1768291251018,0.00252037,3126.6,3125.9,0.141321]